fUST/lending_fUST_20250725
["ID","MTS","AMOUNT","RATE_DAILY","PERIOD"]
[374763991,1753438240058,-152.4612,0.00020821,2]
[374763992,1753438240068,-460.0,0.00020821,2]
[374763994,1753438240077,-151.0,0.00020821,2]
[374763996,1753438240086,-460.0,0.00020821,2]
[374763998,1753438240095,-460.0,0.00020821,2]
[374764000,1753438240105,-460.0,0.00020821,2]
[374764002,1753438240112,-460.0,0.00020821,2]
[374764004,1753438240121,-537.41211285,0.00020821,2]
[374764005,1753438240127,-1689.92,0.00020821,2]
[374764007,1753438240134,-460.0,0.00020821,2]
[374764009,1753438240142,-460.0,0.00020821,2]
[374764011,1753438240151,-191.0,0.00020866,2]
[374764013,1753438240159,-191.0,0.00020944,2]
[374764015,1753438240166,-191.0,0.00020956,2]
[374764017,1753438240174,-191.0,0.00020965,2]
[374764019,1753438240181,-661.38545298,0.00020969,4]
[374764020,1753438240190,-150.0,0.00021,2]
[374764022,1753438240198,-191.0,0.00021025,2]
[374764024,1753438240208,-191.0,0.00021052,2]
[374764026,1753438240215,-3234.57,0.00021095,2]
[374764028,1753438240224,-460.0,0.00021095,2]
[374764030,1753438240235,-460.0,0.00021095,2]
[374764032,1753438240243,-497.31,0.00021095,2]
[374764034,1753438240251,-460.0,0.00021095,2]
[374764036,1753438240261,-460.0,0.00021095,2]
[374764038,1753438240270,-460.0,0.00021095,2]
[374764040,1753438240279,-460.0,0.00021095,2]
[374764042,1753438240289,-460.0,0.00021095,2]
[374764043,1753438240299,-1689.92,0.00021095,2]
[374764045,1753438240309,-460.0,0.00021095,2]
[374764047,1753438240319,-460.0,0.00021095,2]
[374764049,1753438240328,-191.0,0.00021096,2]
[374764051,1753438240338,-191.0,0.00021098,2]
[374764053,1753438240347,-500.74146598,0.000211,2]
[374764055,1753438240357,-191.0,0.00021104,2]
[374764057,1753438240366,-487.246,0.00021132,2]
[374764059,1753438240378,-191.0,0.00021139,2]
[374764061,1753438240387,-661.38545298,0.00021176,4]
[374764063,1753438240397,-1855.0,0.00021235,2]
[374764065,1753438240407,-191.0,0.00021319,2]
[374764066,1753438240416,-191.0,0.00021344,2]
[374764068,1753438240425,-3234.57,0.00021369,2]
[374764070,1753438240435,-460.0,0.00021369,2]
[374764072,1753438240444,-460.0,0.00021369,2]
[374764074,1753438240454,-497.31,0.00021369,2]
[374764076,1753438240463,-460.0,0.00021369,2]
[374764078,1753438240473,-460.0,0.00021369,2]
[374764080,1753438240483,-460.0,0.00021369,2]
[374764081,1753438240493,-460.0,0.00021369,2]
[374764083,1753438240502,-151.0,0.00021369,2]
[374764085,1753438240511,-460.0,0.00021369,2]
[374764087,1753438240521,-151.0,0.00021369,2]
[374764089,1753438240531,-1689.92,0.00021369,2]
[374764091,1753438240541,-460.0,0.00021369,2]
[374764093,1753438240550,-151.0,0.00021369,2]
[374764095,1753438240559,-271.74,0.00021369,2]
[374764097,1753438240571,-191.0,0.0002137,2]
[374764099,1753438240583,-661.38545298,0.00021383,5]
[374764101,1753438240593,-191.0,0.00021391,2]
[374764103,1753438240603,-191.0,0.0002141,2]
[374764105,1753438240613,-1040.95,0.00021415,2]
[374764107,1753438240622,-189.316117,0.00021415,2]
[374764109,1753438240632,-241.683384,0.00021542,2]
[374764111,1753438240641,-151.0,0.00021542,2]
[374764112,1753438240650,-151.0,0.00021542,2]
[374764114,1753438240660,-1855.0,0.00021542,2]
[374764116,1753438240670,-3173.20319211,0.00021543,2]
[374764128,1753438240792,-661.38545298,0.0002159,5]
[374764130,1753438240807,-151.0,0.000216,4]
[374764132,1753438240818,-151.0,0.00021643,2]
[374764134,1753438240827,-151.0,0.00021643,2]
[374764136,1753438240837,-151.0,0.00021643,2]
[374764138,1753438240847,-151.0,0.00021643,2]
[374764140,1753438240857,-151.0,0.00021643,2]
[374764142,1753438240867,-151.0,0.00021643,2]
[374764144,1753438240877,-151.0,0.00021643,2]
[374764146,1753438240887,-151.0,0.00021643,2]
[374764148,1753438240897,-151.0,0.00021643,2]
[374764150,1753438240906,-367.545955,0.00021643,2]
[374764151,1753438240916,-367.545955,0.00021643,2]
[374764152,1753438240926,-153.938831,0.00021643,2]
[374764153,1753438240936,-151.0,0.00021643,2]
[374764154,1753438240946,-151.0,0.00021643,2]
[374764155,1753438240955,-3234.57,0.00021643,2]
[374764156,1753438240965,-176.497886,0.00021643,2]
[374764157,1753438240974,-176.497886,0.00021643,2]
[374764158,1753438240985,-460.0,0.00021643,2]
[374764159,1753438240995,-460.0,0.00021643,2]
[374764160,1753438241005,-497.31,0.00021643,2]
[374764161,1753438241015,-460.0,0.00021643,2]
[374764162,1753438241025,-460.0,0.00021643,2]
[374764163,1753438241035,-551.91,0.00021643,2]
[374764164,1753438241045,-460.0,0.00021643,2]
[374764165,1753438241054,-460.0,0.00021643,2]
[374764166,1753438241064,-1689.92,0.00021643,2]
[374764167,1753438241074,-460.0,0.00021643,2]
[374764168,1753438241083,-1000.0,0.00021671,5]
[374764169,1753438241093,-160.78433941,0.00021703,2]
[374764170,1753438241103,-1855.0,0.00021781,2]
[374764171,1753438241112,-661.38545298,0.00021797,6]
[374764172,1753438241122,-231.28369723,0.00021885,2]
[374764173,1753438241132,-151.0,0.000219,3]
[374764174,1753438241142,-151.0,0.00021917,2]
[374764175,1753438241152,-500.0,0.00021917,2]
[374764176,1753438241162,-503.90467185,0.00021917,2]
[374764177,1753438241171,-3234.57,0.00021917,2]
[374764178,1753438241180,-460.0,0.00021917,2]
[374764179,1753438241190,-460.0,0.00021917,2]
[374764181,1753438241200,-497.31,0.00021917,2]
[374764182,1753438241209,-460.0,0.00021917,2]
[374764183,1753438241219,-460.0,0.00021917,2]
[374764185,1753438241228,-337.72,0.00021917,2]
[374764187,1753438241239,-460.0,0.00021917,2]
[374764189,1753438241248,-1689.92,0.00021917,2]
[374764191,1753438241258,-460.0,0.00021917,2]
[374764193,1753438241268,-151.0,0.00021918,2]
[374764195,1753438241278,-151.0,0.00021918,2]
[374764197,1753438241289,-151.0,0.00021937,7]
[374764199,1753438241298,-151.0,0.00021937,7]
[374764201,1753438241308,-367.545955,0.00021937,7]
[374764203,1753438241318,-367.545955,0.00021937,7]
[374764205,1753438241328,-258.733438,0.00021937,7]
[374764207,1753438241338,-151.0,0.00021937,7]
[374764209,1753438241347,-151.0,0.00021937,7]
[374764211,1753438241357,-151.0,0.00021937,7]
[374764213,1753438241367,-151.0,0.00021937,7]
[374764215,1753438241377,-191.0,0.00021957,2]
[374764217,1753438241386,-3173.2031921,0.00021962,2]
[374764219,1753438241396,-1840.11685752,0.00021991,2]
[374764221,1753438241406,-7353.10696267,0.00021991,2]
[374764223,1753438241416,-4621.65779479,0.00021991,2]
[374764225,1753438241425,-151.0,0.00022,4]
[374764227,1753438241435,-4217.37,0.00022,7]
[374764229,1753438241445,-2323.08,0.00022,7]
[374764231,1753438241454,-151.0,0.00022,7]
[374764233,1753438241464,-151.0,0.00022,7]
[374764235,1753438241474,-151.0,0.00022,7]
[374764237,1753438241483,-9819.51,0.00022,7]
[374764239,1753438241495,-151.0,0.00022,7]
[374764241,1753438241504,-151.0,0.00022,7]
[374764242,1753438241514,-176.497886,0.00022,7]
[374764244,1753438241523,-176.497886,0.00022,7]
[374764246,1753438241533,-782.21,0.00022,2]
[374764248,1753438241543,-151.0,0.00022,2]
[374764250,1753438241552,-661.38545298,0.00022003,6]
[374764253,1753438241562,-607.363682,0.00022039,8]
[374764254,1753438241572,-429.8269109,0.00022082,2]
[374764257,1753438241581,-429.8269109,0.00022082,2]
[374764259,1753438241591,-429.1475734,0.00022082,2]
[374764261,1753438241601,-1179.73472425,0.00022091,2]
[374764262,1753438241610,-153.709726,0.00022091,7]
[374764265,1753438241620,-216.195438,0.00022091,7]
[374764267,1753438241630,-150.0,0.00022108,2]
[374764268,1753438241639,-150.0,0.00022108,2]
[374764271,1753438241650,-648.0,0.00022108,2]
[374764273,1753438241659,-2157.0,0.00022108,2]
[374764275,1753438241669,-969.0,0.00022108,2]
[374764277,1753438241679,-1179.73472422,0.00022163,2]
[374764279,1753438241692,-151.0,0.00022191,7]
[374764281,1753438241702,-151.0,0.00022191,7]
[374764283,1753438241711,-245.005402,0.00022191,7]
[374764285,1753438241720,-3234.57,0.00022191,2]
[374764287,1753438241731,-176.497886,0.00022191,7]
[374764289,1753438241743,-176.497886,0.00022191,7]
[374764291,1753438241753,-460.0,0.00022191,2]
[374764293,1753438241763,-151.0,0.00022191,7]
[374764295,1753438241772,-151.0,0.00022191,7]
[374764297,1753438241783,-460.0,0.00022191,2]
[374764299,1753438241793,-497.31,0.00022191,2]
[374764301,1753438241802,-460.0,0.00022191,2]
[374764303,1753438241812,-460.0,0.00022191,2]
[374764305,1753438241822,-460.0,0.00022191,2]
[374764307,1753438241833,-1689.92,0.00022191,2]
[374764308,1753438241843,-460.0,0.00022191,2]
[374764310,1753438241852,-823.0,0.00022197,2]
[374764312,1753438241863,-151.0,0.000222,8]
[374764314,1753438241873,-151.0,0.000222,8]
[374764316,1753438241882,-661.38545298,0.0002221,6]
[374764318,1753438241892,-1179.73472422,0.00022236,2]
[374764320,1753438241902,-500.0,0.00022251,2]
[374764322,1753438241912,-1179.73472422,0.00022308,2]
[374764324,1753438241921,-151.0,0.00022308,7]
[374764326,1753438241931,-151.0,0.00022321,7]
[374764328,1753438241940,-151.0,0.00022321,7]
[374764329,1753438241949,-800.0,0.00022346,2]
[374764331,1753438241959,-1387.94,0.00022346,2]
[374764333,1753438241969,-242.15935189,0.00022364,2]
[374764335,1753438241978,-17886.15084021,0.00022365,3]
[374764337,1753438241989,-800.0,0.00022366,2]
[374764339,1753438241999,-227.71,0.0002238,4]
[374764341,1753438242009,-177.11551651,0.0002238,4]
[374764343,1753438242019,-177.11551651,0.0002238,4]
[374764345,1753438242028,-177.11,0.0002238,4]
[374764347,1753438242039,-175.7072506,0.0002238,4]
[374764349,1753438242048,-175.7072506,0.0002238,4]
[374764351,1753438242058,-175.7072506,0.0002238,4]
[374764353,1753438242067,-175.7,0.0002238,4]
[374764355,1753438242077,-163.99343389,0.0002238,4]
[374764357,1753438242086,-163.99343389,0.0002238,4]
[374764359,1753438242096,-163.99343389,0.0002238,4]
[374764361,1753438242105,-163.99343389,0.0002238,4]
[374764363,1753438242115,-163.99343389,0.0002238,4]
[374764365,1753438242124,-163.99343389,0.0002238,4]
[374764367,1753438242134,-163.99343389,0.0002238,4]
[374764369,1753438242143,-163.99343389,0.0002238,4]
[374764371,1753438242152,-163.99343389,0.0002238,4]
[374764372,1753438242161,-163.99,0.0002238,4]
[374764374,1753438242171,-151.0,0.0002238,7]
[374764377,1753438242181,-151.0,0.0002238,7]
[374764380,1753438242191,-151.0,0.0002238,7]
[374764383,1753438242200,-172.687962,0.0002238,7]
[374764385,1753438242210,-151.0,0.0002238,7]
[374764387,1753438242219,-1179.73472422,0.0002238,2]
[374764389,1753438242228,-367.545955,0.0002238,7]
[374764391,1753438242240,-367.545955,0.0002238,7]
[374764393,1753438242250,-151.0,0.0002238,7]
[374764395,1753438242260,-151.0,0.0002238,7]
[374764397,1753438242270,-3173.2031921,0.0002238,2]
[374764399,1753438242281,-500.0,0.0002239,2]
[374764401,1753438242291,-278.49740873,0.0002239,2]
[374764403,1753438242301,-500.0,0.0002239,2]
[374764406,1753438242311,-800.0,0.00022403,2]
[374764409,1753438242321,-367.28424548,0.00022407,2]
[374764412,1753438242331,-800.0,0.00022411,2]
[374764415,1753438242340,-151.0,0.00022411,7]
[374764418,1753438242350,-176.497886,0.00022411,7]
[374764421,1753438242360,-176.497886,0.00022411,7]
[374764424,1753438242370,-800.0,0.00022412,2]
[374764427,1753438242380,-661.38545298,0.00022417,7]
[374764429,1753438242389,-151.0,0.00022435,7]
[374764431,1753438242399,-800.0,0.00022446,2]
[374764433,1753438242408,-800.0,0.0002246,2]
[374764435,1753438242418,-151.0,0.00022465,7]
[374764438,1753438242428,-151.0,0.00022465,7]
[374764441,1753438242437,-151.0,0.00022465,7]
[374764444,1753438242446,-367.545955,0.00022465,7]
[374764446,1753438242455,-367.545955,0.00022465,7]
[374764448,1753438242465,-3234.57,0.00022465,2]
[374764450,1753438242475,-460.0,0.00022465,2]
[374764452,1753438242486,-468.95,0.00022465,2]
[374764454,1753438242496,-497.31,0.00022465,2]
[374764457,1753438242505,-460.0,0.00022465,2]
[374764459,1753438242515,-268.9,0.00022465,2]
[374764461,1753438242524,-351.72393278,0.00022465,2]
[374764463,1753438242534,-1689.92,0.00022465,2]
[374764465,1753438242543,-460.0,0.00022465,2]
[374764467,1753438242553,-1460.56,0.00022465,2]
[374764469,1753438242562,-500.0,0.00022473,2]
[374764471,1753438242572,-500.0,0.00022473,2]
[374764473,1753438242583,-500.0,0.00022473,2]
[374764475,1753438242593,-153.96306132,0.00022473,2]
[374764476,1753438242602,-500.0,0.00022473,2]
[374764478,1753438242612,-500.0,0.00022473,2]
[374764480,1753438242622,-500.0,0.00022473,2]
[374764482,1753438242631,-503.42127867,0.00022473,2]
[374764484,1753438242641,-500.0,0.00022473,2]
[374764486,1753438242651,-500.50351289,0.00022473,2]
[374764488,1753438242660,-3441.99128201,0.00022473,2]
[374764490,1753438242670,-26414.99518271,0.00022473,2]
[374764492,1753438242680,-151.0,0.00022473,7]
[374764494,1753438242694,-273.421022,0.00022473,7]
[374764496,1753438242705,-151.0,0.00022473,7]
[374764498,1753438242714,-151.0,0.00022473,7]
[374764500,1753438242724,-151.0,0.00022473,7]
[374764502,1753438242737,-151.0,0.00022473,7]
[374764504,1753438242746,-151.0,0.00022473,7]
[374764506,1753438242755,-151.0,0.00022473,7]
[374764508,1753438242765,-367.545955,0.00022473,7]
[374764510,1753438242776,-367.545955,0.00022473,7]
[374764512,1753438242787,-176.497886,0.00022473,7]
[374764513,1753438242796,-176.497886,0.00022473,7]
[374764516,1753438242807,-151.0,0.00022473,7]
[374764517,1753438242816,-200.98219254,0.00022479,2]
[374764519,1753438242826,-1627318.32773272,0.0002248,2]
[374764525,1753438242848,-257.3663636,0.0002248,2]
[374764527,1753438242859,-518.22565323,0.0002248,2]
[374764846,1753438245843,-928.59449727,0.0002237,10]
[374773308,1753438894171,1632.30202837,0.00016892,2]
[374773309,1753438894194,20000.0,0.00016892,2]
[374773310,1753438894217,3267.69797163,0.00016892,2]
[374773312,1753439176909,304.238794,0.00013699,2]
[374773323,1753439309078,44654.25889326,0.00025906,120]
[374773324,1753439311400,16428.06323437,0.00017,2]
[374773325,1753439311423,9526.0354669,0.00017,2]
[374773372,1753439432039,-304.6946771,0.00017327,2]
[374773374,1753439432050,-1832.33502507,0.000176,2]
[374773376,1753439432060,-300.0,0.00017872,2]
[374773378,1753439432069,-300.0,0.00017872,2]
[374773380,1753439432079,-289.0,0.00017872,2]
[374773382,1753439432090,-1200.0,0.00017872,2]
[374773385,1753439432101,-300.41082041,0.00017873,2]
[374773388,1753439432111,-500.28448424,0.00017873,2]
[374773393,1753439432121,-500.0,0.00017873,2]
[374773395,1753439432130,-500.40172608,0.00017873,2]
[374773397,1753439432140,-500.0,0.00017873,2]
[374773399,1753439432149,-502.9019895,0.00017873,2]
[374773402,1753439432158,-343.36690803,0.00017873,2]
[374773404,1753439432170,-156.63309197,0.00017873,2]
[374773406,1753439432179,-500.37381043,0.00017873,2]
[374773408,1753439432189,-500.0,0.00017873,2]
[374773410,1753439432198,-500.98550011,0.00017873,2]
[374773412,1753439432208,-505.205901,0.00017873,2]
[374773414,1753439432217,-500.0,0.00017873,2]
[374773416,1753439432228,-502.37147298,0.00017873,2]
[374773418,1753439432238,-500.0,0.00017873,2]
[374773420,1753439432247,-500.0,0.00017873,2]
[374773422,1753439432256,-302.75975385,0.00017873,2]
[374773424,1753439432266,-500.0,0.00017873,2]
[374773426,1753439432275,-1200.0,0.00017898,2]
[374773428,1753439432285,-4561.57000125,0.00017899,2]
[374773430,1753439432294,-40345.38159188,0.000179,2]
[374773432,1753439432306,-3271.21629627,0.000179,2]
[374773434,1753439432317,-1074.74166481,0.000179,2]
[374773967,1753439438017,-500.0,0.00017898,2]
[374773969,1753439438027,-169.37558182,0.00017898,2]
[374773971,1753439438037,-27121.31968823,0.000179,2]
[374773975,1753439438067,-231828.68352072,0.000179,2]
[374773977,1753439438076,-160.78433941,0.00018157,2]
[374773979,1753439438087,-1598.44531375,0.00018257,2]
[374773981,1753439438096,-727.45970046,0.00019078,2]
[374773983,1753439438106,-215.0738,0.00019147,2]
[374773985,1753439438115,-500.0,0.00019173,2]
[374773987,1753439438125,-501.0143828,0.00019173,2]
[374773989,1753439438135,-500.0,0.00019173,2]
[374773991,1753439438144,-500.0,0.00019173,2]
[374773993,1753439438154,-235.79192868,0.00019173,2]
[374773995,1753439438163,-500.0,0.00019173,2]
[374773997,1753439438173,-500.0,0.00019173,2]
[374773999,1753439438183,-500.0,0.00019173,2]
[374774001,1753439438193,-500.37542207,0.00019173,2]
[374774003,1753439438203,-463.27515092,0.00019178,2]
[374774005,1753439438212,-460.0,0.00019178,2]
[374774007,1753439438223,-460.0,0.00019178,2]
[374774009,1753439438233,-460.0,0.00019178,2]
[374774012,1753439438243,-462.87270064,0.00019178,2]
[374774013,1753439438252,-460.0,0.00019178,2]
[374774016,1753439438262,-460.0,0.00019178,2]
[374774018,1753439438272,-460.0,0.00019178,2]
[374774020,1753439438282,-460.0,0.00019178,2]
[374774022,1753439438293,-460.0,0.00019178,2]
[374774024,1753439438302,-460.0,0.00019178,2]
[374774026,1753439438312,-460.0,0.00019178,2]
[374774028,1753439438322,-460.0,0.00019178,2]
[374774030,1753439438332,-460.0,0.00019178,2]
[374774032,1753439438341,-460.0,0.00019178,2]
[374774034,1753439438353,-460.0,0.00019178,2]
[374774036,1753439438363,-460.0,0.00019178,2]
[374774038,1753439438373,-460.0,0.00019178,2]
[374774040,1753439438382,-461.5685769,0.00019178,2]
[374774042,1753439438392,-222.18933814,0.00019178,2]
[374774045,1753439438402,-460.5781844,0.00019178,2]
[374774047,1753439438411,-460.0,0.00019178,2]
[374774049,1753439438421,-460.0,0.00019178,2]
[374774051,1753439438431,-460.0,0.00019178,2]
[374774053,1753439438440,-460.0,0.00019178,2]
[374774055,1753439438449,-460.0,0.00019178,2]
[374774057,1753439438458,-460.0,0.00019178,2]
[374774059,1753439438468,-500.0,0.00019178,2]
[374774061,1753439438479,-500.0,0.00019178,2]
[374774063,1753439438489,-460.0,0.00019178,2]
[374774065,1753439438498,-500.0,0.00019178,2]
[374774067,1753439438508,-500.0,0.00019178,2]
[374774069,1753439438518,-500.0,0.00019178,2]
[374774071,1753439438527,-500.0,0.00019178,2]
[374774073,1753439438536,-460.0,0.00019178,2]
[374774075,1753439438545,-460.0,0.00019178,2]
[374774077,1753439438558,-460.0,0.00019178,2]
[374774079,1753439438567,-460.0,0.00019178,2]
[374774081,1753439438577,-460.0,0.00019178,2]
[374774083,1753439438587,-460.0,0.00019178,2]
[374774085,1753439438596,-460.0,0.00019178,2]
[374774087,1753439438606,-460.0,0.00019178,2]
[374774089,1753439438615,-460.0,0.00019178,2]
[374774091,1753439438625,-460.0,0.00019178,2]
[374774093,1753439438634,-469.71624921,0.00019178,2]
[374774095,1753439438643,-460.0,0.00019178,2]
[374774097,1753439438652,-460.0,0.00019178,2]
[374774100,1753439438664,-460.0,0.00019178,2]
[374774102,1753439438673,-460.0,0.00019178,2]
[374774104,1753439438682,-460.0,0.00019178,2]
[374774106,1753439438692,-460.0,0.00019178,2]
[374774108,1753439438702,-460.0,0.00019178,2]
[374774110,1753439438711,-460.0,0.00019178,2]
[374774112,1753439438720,-460.0,0.00019178,2]
[374774114,1753439438733,-460.0,0.00019178,2]
[374774116,1753439438743,-460.0,0.00019178,2]
[374774118,1753439438752,-460.0,0.00019178,2]
[374774120,1753439438761,-460.0,0.00019178,2]
[374774122,1753439438770,-460.0,0.00019178,2]
[374774124,1753439438780,-460.0,0.00019178,2]
[374774126,1753439438789,-460.0,0.00019178,2]
[374774128,1753439438798,-460.0,0.00019178,2]
[374774130,1753439438808,-460.0,0.00019178,2]
[374774132,1753439438817,-460.0,0.00019178,2]
[374774134,1753439438826,-460.0,0.00019178,2]
[374774136,1753439438835,-460.0,0.00019178,2]
[374774138,1753439438844,-460.0,0.00019178,2]
[374774140,1753439438854,-460.0,0.00019178,2]
[374774143,1753439438864,-460.0,0.00019178,2]
[374774145,1753439438873,-460.0,0.00019178,2]
[374774147,1753439438882,-460.0,0.00019178,2]
[374774149,1753439438892,-460.0,0.00019178,2]
[374774151,1753439438901,-460.0,0.00019178,2]
[374774153,1753439438911,-460.0,0.00019178,2]
[374774155,1753439438920,-460.0,0.00019178,2]
[374774157,1753439438929,-560.68255363,0.00019178,2]
[374774159,1753439438938,-460.0,0.00019178,2]
[374774161,1753439438947,-460.0,0.00019178,2]
[374774163,1753439438957,-460.0,0.00019178,2]
[374774165,1753439438966,-460.0,0.00019178,2]
[374774167,1753439438976,-460.0,0.00019178,2]
[374774169,1753439438986,-460.0,0.00019178,2]
[374774171,1753439438996,-460.0,0.00019178,2]
[374774173,1753439439006,-588.58047237,0.00019178,2]
[374774175,1753439439021,-460.0,0.00019178,2]
[374774177,1753439439030,-460.0,0.00019178,2]
[374774179,1753439439039,-500.0,0.00019178,2]
[374774181,1753439439049,-500.0,0.00019178,2]
[374774183,1753439439059,-500.0,0.00019178,2]
[374774185,1753439439069,-486.87,0.00019178,2]
[374774187,1753439439078,-460.0,0.00019178,2]
[374774190,1753439439089,-229.21364498,0.00019178,2]
[374774192,1753439439099,-460.0,0.00019178,2]
[374774194,1753439439110,-460.0,0.00019178,2]
[374774196,1753439439119,-460.0,0.00019178,2]
[374774198,1753439439128,-502.17,0.00019178,2]
[374774200,1753439439138,-523.18822385,0.00019178,2]
[374774203,1753439439159,-460.0,0.00019178,2]
[374774205,1753439439169,-1482.51,0.00019178,2]
[374774207,1753439439178,-460.0,0.00019178,2]
[374774209,1753439439187,-460.0,0.00019178,2]
[374774211,1753439439197,-460.0,0.00019178,2]
[374774213,1753439439207,-460.0,0.00019178,2]
[374774215,1753439439217,-460.0,0.00019178,2]
[374774217,1753439439227,-460.0,0.00019178,2]
[374774219,1753439439237,-460.0,0.00019178,2]
[374774221,1753439439247,-460.0,0.00019178,2]
[374774223,1753439439257,-460.0,0.00019178,2]
[374774225,1753439439267,-460.0,0.00019178,2]
[374774227,1753439439276,-461.11632653,0.00019178,2]
[374774229,1753439439286,-460.0,0.00019178,2]
[374774232,1753439439296,-460.0,0.00019178,2]
[374774234,1753439439306,-460.0,0.00019178,2]
[374774236,1753439439316,-460.0,0.00019178,2]
[374774238,1753439439325,-460.0,0.00019178,2]
[374774240,1753439439335,-460.0,0.00019178,2]
[374774242,1753439439345,-460.0,0.00019178,2]
[374774244,1753439439354,-460.0,0.00019178,2]
[374774246,1753439439364,-460.0,0.00019178,2]
[374774248,1753439439374,-460.0,0.00019178,2]
[374774250,1753439439383,-460.0,0.00019178,2]
[374774252,1753439439392,-505.9810935,0.00019178,2]
[374774254,1753439439402,-495.25,0.00019178,2]
[374774256,1753439439412,-460.0,0.00019178,2]
[374774258,1753439439421,-464.4907986,0.00019178,2]
[374774261,1753439439431,-492.84,0.00019178,2]
[374774263,1753439439440,-460.0,0.00019178,2]
[374774265,1753439439449,-460.0,0.00019178,2]
[374774267,1753439439460,-460.0,0.00019178,2]
[374774269,1753439439470,-460.0,0.00019178,2]
[374774271,1753439439481,-460.0,0.00019178,2]
[374774273,1753439439491,-193.87189415,0.00019178,2]
[374774275,1753439439502,-460.0,0.00019178,2]
[374774278,1753439439512,-460.0,0.00019178,2]
[374774279,1753439439525,-519.21203094,0.00019178,2]
[374774281,1753439439534,-460.69572148,0.00019178,2]
[374774284,1753439439545,-460.0,0.00019178,2]
[374774286,1753439439555,-774.55,0.00019178,2]
[374774288,1753439439564,-460.45963367,0.00019178,2]
[374774290,1753439439574,-460.0,0.00019178,2]
[374774292,1753439439584,-460.0,0.00019178,2]
[374774295,1753439439594,-460.0,0.00019178,2]
[374774297,1753439439604,-460.0,0.00019178,2]
[374774299,1753439439615,-460.0,0.00019178,2]
[374774301,1753439439625,-460.0,0.00019178,2]
[374774303,1753439439635,-460.0,0.00019178,2]
[374774305,1753439439645,-460.0,0.00019178,2]
[374774307,1753439439655,-460.0,0.00019178,2]
[374774309,1753439439665,-460.0,0.00019178,2]
[374774311,1753439439676,-460.0,0.00019178,2]
[374774314,1753439439686,-460.0,0.00019178,2]
[374774316,1753439439696,-460.0,0.00019178,2]
[374774318,1753439439707,-460.0,0.00019178,2]
[374774320,1753439439717,-460.0,0.00019178,2]
[374774322,1753439439728,-460.0,0.00019178,2]
[374774324,1753439439738,-501.1667014,0.00019178,2]
[374774326,1753439439747,-460.0,0.00019178,2]
[374774328,1753439439756,-460.0,0.00019178,2]
[374774330,1753439439766,-460.0,0.00019178,2]
[374774332,1753439439775,-460.0,0.00019178,2]
[374774334,1753439439785,-460.0,0.00019178,2]
[374774336,1753439439795,-460.0,0.00019178,2]
[374774338,1753439439805,-462.28313331,0.00019178,2]
[374774340,1753439439815,-460.0,0.00019178,2]
[374774342,1753439439825,-460.0,0.00019178,2]
[374774344,1753439439835,-493.35,0.00019178,2]
[374774346,1753439439844,-391.0295336,0.00019178,2]
[374774348,1753439439854,-460.0,0.00019178,2]
[374774350,1753439439863,-460.0,0.00019178,2]
[374774352,1753439439873,-460.0,0.00019178,2]